{"text_format":"3","workbook":"xlsx","n_sheets":1,"sheets":["Report"],"not_rendered":{"defined_names":1},"read":"whole","date_system":"1900"}

{"sheet":"Report","index":0,"n_rows":22,"n_cols":31,"rows_kept":22}
["Period","Year","Authority","WDA for WCA","Region","Nation","Root Facility Type ","Root Waste stream type","Output process Type","Parent Facility Type","Parent Facility Name","Parent Facility Address","Parent Facility Postcode","Parent Facility Licence","Material","Material Group","Tonnes","Recycling Type","Recycling Category","Recycling Group","Within definition of household recycling","Suitable for WfH?","Collection Default HH/NonHHld Factor","User-defined HH/NonHHld Source split","Collection Default WfH/WnfH Factor","User-defined WfH/WnfH Source split","Tonnage to count for total household recycling","Tonnage of household dry recycling ","Tonnage of household organic recycling ","Tonnage of household waste - preparation for reuse","Tonnage to count in WfH Numerator"]
["Jan 19 - Mar 19",2019,"Hastings Borough Council","East Sussex County Council","South East","England","Materials recovery facility (qu58)","Comingled recyclate","Dry recyclate","Reprocessor - recycling (qu19)","Eco - Oil Ltd","Jetty Business Units, Unit1-6 Kingsnorth Industrial Estate, Kingsnorth, Hoo, Rochester, Kent","ME3 9ND","19396 / HP3398HS","Mixed Plastics","Plastic",3.03,"Recycling","Via MRF","All Other",true,true,{"v":1,"d":"100.00%"},null,{"v":1,"d":"100.00%"},null,{"$f":"IF(U2=TRUE,Q2*IF(X2<>\"\",X2,W2),\"\")","v":3.03},{"$f":"IF(R2=\"Recycling\",AA2,\"\")","v":3.03},{"$f":"IF(R2=\"Composting\",AA2,\"\")","v":""},{"$f":"IF(R2=\"Reuse\",AA2,\"\")","v":""},{"$f":"IF(V2=TRUE,Q2*IF(Z2<>\"\",Z2,Y2),\"\")","v":3.03}]
["Jan 19 - Mar 19",2019,"Hastings Borough Council","East Sussex County Council","South East","England","Materials recovery facility (qu58)","Comingled recyclate","Dry recyclate","Reprocessor - recycling (qu19)","Viridor Polymer Recycling Ltd","Gerrard Place, Off Gillibrands Road, East Gillbrands, Skelmersdale, Lancashire","WN8 9SF","54473 / SP3593ZB","HDPE [2]","Plastic",41.77,"Recycling","Via MRF","All Other",true,true,{"v":1,"d":"100.00%"},null,{"v":1,"d":"100.00%"},null,41.77,41.77,"","",41.77]
["Jan 19 - Mar 19",2019,"Hastings Borough Council","East Sussex County Council","South East","England","Materials recovery facility (qu58)","Comingled recyclate","Dry recyclate","Reprocessor - recycling (qu19)","Viridor Polymer Recycling Ltd","Gerrard Place, Off Gillibrands Road, East Gillbrands, Skelmersdale, Lancashire","WN8 9SF","54473 / SP3593ZB","PET [1]","Plastic",53.27,"Recycling","Via MRF","All Other",true,true,{"v":1,"d":"100.00%"},null,{"v":1,"d":"100.00%"},null,53.27,53.27,"","",53.27]
["Jan 19 - Mar 19",2019,"Hastings Borough Council","East Sussex County Council","South East","England","Materials recovery facility (qu58)","Comingled recyclate","Dry recyclate","Reprocessor - recycling (qu19)","Plasrecycle Limited","Former Hunter Plastics Site, Nathan Way, London","SE28 0AB","104667 / KB3837RZ","Mixed Plastics","Plastic",43.39,"Recycling","Via MRF","All Other",true,true,{"v":1,"d":"100.00%"},null,{"v":1,"d":"100.00%"},null,43.39,43.39,"","",43.39]
["Jan 19 - Mar 19",2019,"Hastings Borough Council","East Sussex County Council","South East","England","Materials recovery facility (qu58)","Comingled recyclate","Dry recyclate","Reprocessor - recycling (qu19)","Viridor Waste Kent Ltd","Royal Eagle Close, Medway City Estate, Rochester, Kent","ME2 4NF","10023 / TP3495HH","Mixed Plastics","Plastic",76.07,"Recycling","Via MRF","All Other",true,true,{"v":1,"d":"100.00%"},null,{"v":1,"d":"100.00%"},null,76.07,76.07,"","",76.07]
["Apr 19 - Jun 19",2019,"Hastings Borough Council","East Sussex County Council","South East","England","Materials recovery facility (qu58)","Comingled recyclate","Dry recyclate","Reprocessor - recycling (qu19)","Viridor Waste Kent Ltd","Royal Eagle Close, Medway City Estate, Rochester, Kent","ME2 4NF","10023 / TP3495HH","Mixed Plastics","Plastic",79.77,"Recycling","Via MRF","All Other",true,true,{"v":1,"d":"100.00%"},null,{"v":1,"d":"100.00%"},null,79.77,79.77,"","",79.77]
["Apr 19 - Jun 19",2019,"Hastings Borough Council","East Sussex County Council","South East","England","Materials recovery facility (qu58)","Comingled recyclate","Dry recyclate","Reprocessor - recycling (qu19)","Eco - Oil Ltd","Jetty Business Units, Unit1-6 Kingsnorth Industrial Estate, Kingsnorth, Hoo, Rochester, Kent","ME3 9ND","19396 / HP3398HS","Mixed Plastics","Plastic",3.47,"Recycling","Via MRF","All Other",true,true,{"v":1,"d":"100.00%"},null,{"v":1,"d":"100.00%"},null,3.47,3.47,"","",3.47]
["Apr 19 - Jun 19",2019,"Hastings Borough Council","East Sussex County Council","South East","England","Materials recovery facility (qu58)","Comingled recyclate","Dry recyclate","Reprocessor - recycling (qu19)","Viridor Polymer Recycling Ltd","Gerrard Place, Off Gillibrands Road, East Gillbrands, Skelmersdale, Lancashire","WN8 9SF","54473 / SP3593ZB","HDPE [2]","Plastic",41.66,"Recycling","Via MRF","All Other",true,true,{"v":1,"d":"100.00%"},null,{"v":1,"d":"100.00%"},null,41.66,41.66,"","",41.66]
["Apr 19 - Jun 19",2019,"Hastings Borough Council","East Sussex County Council","South East","England","Materials recovery facility (qu58)","Comingled recyclate","Dry recyclate","Reprocessor - recycling (qu19)","Viridor Polymer Recycling Ltd","Gerrard Place, Off Gillibrands Road, East Gillbrands, Skelmersdale, Lancashire","WN8 9SF","54473 / SP3593ZB","PET [1]","Plastic",52.9,"Recycling","Via MRF","All Other",true,true,{"v":1,"d":"100.00%"},null,{"v":1,"d":"100.00%"},null,{"v":52.9,"d":"52.90"},{"v":52.9,"d":"52.90"},"","",{"v":52.9,"d":"52.90"}]
["Apr 19 - Jun 19",2019,"Hastings Borough Council","East Sussex County Council","South East","England","Materials recovery facility (qu58)","Comingled recyclate","Dry recyclate","Reprocessor - recycling (qu19)","Plasrecycle Limited","Former Hunter Plastics Site, Nathan Way, London","SE28 0AB","104667 / KB3837RZ","Mixed Plastics","Plastic",42.7,"Recycling","Via MRF","All Other",true,true,{"v":1,"d":"100.00%"},null,{"v":1,"d":"100.00%"},null,{"v":42.7,"d":"42.70"},{"v":42.7,"d":"42.70"},"","",{"v":42.7,"d":"42.70"}]
["Jul 19 - Sep 19",2019,"Hastings Borough Council","East Sussex County Council","South East","England","Materials recovery facility (qu58)","Comingled recyclate","Dry recyclate","Reprocessor - recycling (qu19)","Viridor Polymer Recycling Ltd","Gerrard Place, Off Gillibrands Road, East Gillbrands, Skelmersdale, Lancashire","WN8 9SF","54473 / SP3593ZB","HDPE [2]","Plastic",36.4,"Recycling","Via MRF","All Other",true,true,{"v":1,"d":"100.00%"},null,{"v":1,"d":"100.00%"},null,{"v":36.4,"d":"36.40"},{"v":36.4,"d":"36.40"},"","",{"v":36.4,"d":"36.40"}]
["Jul 19 - Sep 19",2019,"Hastings Borough Council","East Sussex County Council","South East","England","Materials recovery facility (qu58)","Comingled recyclate","Dry recyclate","Reprocessor - recycling (qu19)","Viridor Polymer Recycling Ltd","Gerrard Place, Off Gillibrands Road, East Gillbrands, Skelmersdale, Lancashire","WN8 9SF","54473 / SP3593ZB","PET [1]","Plastic",58.21,"Recycling","Via MRF","All Other",true,true,{"v":1,"d":"100.00%"},null,{"v":1,"d":"100.00%"},null,58.21,58.21,"","",58.21]
["Jul 19 - Sep 19",2019,"Hastings Borough Council","East Sussex County Council","South East","England","Materials recovery facility (qu58)","Comingled recyclate","Dry recyclate","Reprocessor - recycling (qu19)","Outside UK-EU","Facility Outside The Uk But Within Europe\nnetherlands","na",null,"Mixed Plastics","Plastic",5.68,"Recycling","Via MRF","All Other",true,true,{"v":1,"d":"100.00%"},null,{"v":1,"d":"100.00%"},null,5.68,5.68,"","",5.68]
["Jul 19 - Sep 19",2019,"Hastings Borough Council","East Sussex County Council","South East","England","Materials recovery facility (qu58)","Comingled recyclate","Dry recyclate","Reprocessor - recycling (qu19)","Plasrecycle Limited","Former Hunter Plastics Site, Nathan Way, London","SE28 0AB","104667 / KB3837RZ","Mixed Plastics","Plastic",40.31,"Recycling","Via MRF","All Other",true,true,{"v":1,"d":"100.00%"},null,{"v":1,"d":"100.00%"},null,40.31,40.31,"","",40.31]
["Jul 19 - Sep 19",2019,"Hastings Borough Council","East Sussex County Council","South East","England","Materials recovery facility (qu58)","Comingled recyclate","Dry recyclate","Reprocessor - recycling (qu19)","Viridor Waste Kent Ltd","Royal Eagle Close, Medway City Estate, Rochester, Kent","ME2 4NF","10023 / TP3495HH","Mixed Plastics","Plastic",88.96,"Recycling","Via MRF","All Other",true,true,{"v":1,"d":"100.00%"},null,{"v":1,"d":"100.00%"},null,88.96,88.96,"","",88.96]
["Oct 19 - Dec 19",2019,"Hastings Borough Council","East Sussex County Council","South East","England","Materials recovery facility (qu58)","Comingled recyclate","Dry recyclate","Reprocessor - recycling (qu19)","Viridor Waste Kent Ltd","Royal Eagle Close, Medway City Estate, Rochester, Kent","ME2 4NF","10023 / TP3495HH","Mixed Plastics","Plastic",80.99,"Recycling","Via MRF","All Other",true,true,{"v":1,"d":"100.00%"},null,{"v":1,"d":"100.00%"},null,80.99,80.99,"","",80.99]
["Oct 19 - Dec 19",2019,"Hastings Borough Council","East Sussex County Council","South East","England","Materials recovery facility (qu58)","Comingled recyclate","Dry recyclate","Reprocessor - recycling (qu19)","Viridor Polymer Recycling Ltd","Gerrard Place, Off Gillibrands Road, East Gillbrands, Skelmersdale, Lancashire","WN8 9SF","54473 / SP3593ZB","HDPE [2]","Plastic",45.34,"Recycling","Via MRF","All Other",true,true,{"v":1,"d":"100.00%"},null,{"v":1,"d":"100.00%"},null,45.34,45.34,"","",45.34]
["Oct 19 - Dec 19",2019,"Hastings Borough Council","East Sussex County Council","South East","England","Materials recovery facility (qu58)","Comingled recyclate","Dry recyclate","Reprocessor - recycling (qu19)","Viridor Polymer Recycling Ltd","Gerrard Place, Off Gillibrands Road, East Gillbrands, Skelmersdale, Lancashire","WN8 9SF","54473 / SP3593ZB","PET [1]","Plastic",44.43,"Recycling","Via MRF","All Other",true,true,{"v":1,"d":"100.00%"},null,{"v":1,"d":"100.00%"},null,44.43,44.43,"","",44.43]
["Oct 19 - Dec 19",2019,"Hastings Borough Council","East Sussex County Council","South East","England","Materials recovery facility (qu58)","Comingled recyclate","Dry recyclate","Reprocessor - recycling (qu19)","Outside UK-EU","Facility Outside The Uk But Within Europe\nnetherlands","na",null,"Mixed Plastics","Plastic",2.62,"Recycling","Via MRF","All Other",true,true,{"v":1,"d":"100.00%"},null,{"v":1,"d":"100.00%"},null,2.62,2.62,"","",2.62]
["Oct 19 - Dec 19",2019,"Hastings Borough Council","East Sussex County Council","South East","England","Materials recovery facility (qu58)","Comingled recyclate","Dry recyclate","Reprocessor - recycling (qu19)","Plasrecycle Limited","Former Hunter Plastics Site, Nathan Way, London","SE28 0AB","104667 / KB3837RZ","Mixed Plastics","Plastic",38.79,"Recycling","Via MRF","All Other",true,true,{"v":1,"d":"100.00%"},null,{"v":1,"d":"100.00%"},null,38.79,38.79,"","",38.79]
[{"$nulls":30},{"$f":"SUM(AE2:AE21)","v":{"v":879.7599999999999,"d":"879.76"}}]